bitfinex-derivatives/quotes_BTCF0:USTF0_20251115
["timestamp","ask_amount","ask_price","bid_price","bid_amount"]
[1763184969604,0.07052,96124.0,96123.0,0.07246]
[1763184969805,0.19054209,96124.0,96123.0,0.07246]
[1763184970912,0.19054209,96124.0,96123.0,0.12863881]
[1763184971106,0.19054209,96124.0,96123.0,0.07246]
[1763184972405,0.19054209,96124.0,96123.0,0.12861827]
[1763184974317,0.12002209,96124.0,96123.0,0.07246]
[1763184974617,0.11128262,96133.0,96132.0,0.06842]
[1763184974813,0.11128262,96140.0,96139.0,0.06842]
[1763184975114,0.0204,96155.0,96146.0,0.06842]
[1763184975115,0.06827,96147.0,96146.0,0.06842]
[1763184975315,0.06827,96147.0,96146.0,0.42922]
[1763184975505,0.18095589,96147.0,96146.0,0.42922]
[1763184975708,0.18095589,96147.0,96146.0,0.48527112]
[1763184976214,0.18095589,96147.0,96146.0,0.42922]
[1763184976710,0.18195589,96147.0,96146.0,0.42922]
[1763184977612,0.18295589,96147.0,96146.0,0.42922]
[1763184979428,0.18295589,96147.0,96146.0,0.46652128]
[1763184980028,0.18295589,96147.0,96146.0,0.42922]
[1763184980029,0.14823589,96147.0,96146.0,0.42922]
[1763184980224,0.14823589,96147.0,96146.0,0.48527112]
[1763184980426,0.14823589,96147.0,96146.0,0.42922]
[1763184981425,0.002,96147.0,96146.0,0.48527112]
[1763184981631,0.07763262,96160.0,96159.0,0.06842]
[1763184981930,0.11567,96165.0,96164.0,0.06842]
[1763184982125,0.47208262,96169.0,96164.0,0.06842]
[1763184982126,0.42166259,96169.0,96164.0,0.06842]
[1763184982328,0.06827,96166.0,96165.0,0.09027]
[1763184982722,0.18325622,96166.0,96165.0,0.09027]
[1763184983323,0.18425622,96166.0,96165.0,0.11818755]
[1763184984431,0.18525622,96166.0,96165.0,0.09027]
[1763184985325,0.18525622,96166.0,96165.0,0.11818755]
[1763184986530,0.18525622,96166.0,96165.0,0.09027]
[1763184997444,0.18525622,96166.0,96165.0,0.11818755]
[1763184998229,0.18525622,96166.0,96165.0,0.09027]
[1763184999337,0.11698622,96166.0,96160.0,0.3608]
[1763184999532,0.07179,96161.0,96160.0,0.3608]
[1763184999937,0.19211583,96161.0,96160.0,0.39513]
[1763185001738,0.19211583,96161.0,96160.0,0.03433]
[1763185002642,0.07179,96158.0,96157.0,0.02807871]
[1763185002847,0.07179,96158.0,96157.0,0.00015603]
[1763185003045,0.18687741,96158.0,96157.0,0.00015603]
[1763185003643,0.18687741,96158.0,96157.0,0.06907603]
[1763185004750,0.18687741,96158.0,96157.0,0.09708276]
[1763185004948,0.18687741,96158.0,96157.0,0.02816276]
[1763185006253,0.18687741,96158.0,96157.0,0.06249276]
[1763185006444,0.18687741,96158.0,96157.0,0.03448603]
[1763185008246,0.18687741,96158.0,96157.0,0.00015603]
[1763185008448,0.18687741,96158.0,96157.0,0.02816674]
[1763185008954,0.18687741,96158.0,96157.0,0.00015603]
[1763185009354,0.18687741,96158.0,96157.0,0.03448603]
[1763185009654,0.18687741,96158.0,96157.0,0.06907603]
[1763185021658,0.18687741,96158.0,96157.0,0.00015603]
[1763185021859,0.05168,96127.0,96126.0,0.03138008]
[1763185022058,0.3608,96127.0,96120.0,0.01997]
[1763185022260,0.3608,96127.0,96104.0,0.01997]
[1763185022261,0.05168,96115.0,96114.0,0.03122698]
[1763185022562,0.17051002,96115.0,96114.0,0.06304698]
[1763185023367,0.3598,96117.0,96116.0,0.06294]
[1763185023671,0.41148,96117.0,96116.0,0.06294]
[1763185026469,0.41148,96117.0,96116.0,0.09093373]
[1763185026664,0.3598,96117.0,96116.0,0.06294]
[1763185027073,0.05387803,96120.0,96119.0,0.06294]
[1763185027464,0.17114961,96120.0,96119.0,0.06294]
[1763185027659,0.11727158,96120.0,96119.0,0.06294]
[1763185027864,0.1669185,96130.0,96123.0,0.06294]
[1763185027865,0.08345925,96130.0,96123.0,0.06294]
[1763185028178,0.08345925,96130.0,96120.0,0.01997]
[1763185028179,0.08345925,96130.0,96129.0,0.06294]
[1763185028368,0.3608,96137.0,96136.0,0.06294]
[1763185028770,0.10944925,96146.0,96145.0,0.06294]
[1763185028970,0.02599,96146.0,96145.0,0.06294]
[1763185029172,0.16456448,96146.0,96145.0,0.06294]
[1763185031468,0.16456448,96146.0,96138.0,0.09112]
[1763185031469,0.07305,96139.0,96138.0,0.09112]
[1763185031867,0.1855249,96139.0,96138.0,0.09112]
[1763185034274,0.5463249,96139.0,96136.0,0.00015603]
[1763185034479,0.07305,96137.0,96136.0,0.00015603]
[1763185034872,0.19333731,96137.0,96136.0,0.00015603]
[1763185035479,0.19333731,96137.0,96136.0,0.03649603]
[1763185036991,0.19333731,96137.0,96136.0,0.07130603]
[1763185039592,0.19333731,96137.0,96136.0,0.00015603]
[1763185043785,0.19333731,96137.0,96136.0,0.07130603]
[1763185044183,0.19333731,96137.0,96136.0,0.00015603]
[1763185049495,0.19333731,96137.0,96136.0,0.03336603]
[1763185050001,0.19333731,96137.0,96136.0,0.00015603]
[1763185051002,0.19333731,96137.0,96136.0,0.06580603]
[1763185051299,0.19333731,96137.0,96136.0,0.00015603]
[1763185052294,0.19333731,96137.0,96131.0,0.03737084]
[1763185052497,0.06202,96132.0,96131.0,0.03737084]
[1763185053006,0.06202,96120.0,96119.0,0.03321]
[1763185053307,0.53783306,96120.0,96119.0,0.06565]
[1763185059012,0.47581306,96120.0,96119.0,0.06565]
[1763185059511,0.50682306,96120.0,96119.0,0.06565]
[1763185059902,0.53783306,96120.0,96119.0,0.06565]
[1763185060199,0.17703306,96120.0,96119.0,0.06565]
[1763185060511,0.17703306,96120.0,96119.0,0.03321]
[1763185060808,0.17703306,96120.0,96119.0,0.06565]
[1763185062702,0.17703306,96120.0,96117.0,0.05598864]
[1763185062703,0.06202,96119.0,96117.0,0.05598864]
[1763185062908,0.11501306,96120.0,96117.0,0.12163864]
[1763185062909,0.06202,96118.0,96117.0,0.12163864]
[1763185063110,0.17625468,96118.0,96117.0,0.12163864]
[1763185063314,0.17625468,96118.0,96117.0,0.06565]
[1763185067313,0.3608,96122.0,96117.0,0.06565]
[1763185067314,0.00015603,96129.0,96128.0,0.06565]
[1763185067911,0.03116603,96129.0,96128.0,0.06565]
[1763185071915,0.1709253,96129.0,96128.0,0.03321]
[1763185072215,0.06202,96127.0,96126.0,0.06565]
[1763185072418,0.06202,96127.0,96126.0,0.12176445]
[1763185072618,0.17076927,96127.0,96126.0,0.12176445]
[1763185073009,0.17076927,96127.0,96126.0,0.14258445]
[1763185073313,0.17076927,96127.0,96126.0,0.08647]
[1763185092132,0.17076927,96127.0,96126.0,0.14261017]
[1763185092331,0.17076927,96127.0,96126.0,0.08647]
[1763185096236,0.03596,96121.0,96119.0,0.05614017]
[1763185096440,0.03596,96115.0,96114.0,0.02899698]
[1763185096630,0.39676,96115.0,96114.0,0.02899698]
[1763185096834,0.51041902,96115.0,96114.0,0.05972698]
[1763185098542,0.51041902,96115.0,96114.0,0.09716231]
[1763185099447,0.51041902,96115.0,96114.0,0.05972698]
[1763185103352,0.51041902,96115.0,96114.0,0.09712223]
[1763185103540,0.51041902,96115.0,96114.0,0.05972698]
[1763185105945,0.51041902,96115.0,96114.0,0.09711685]
[1763185108741,0.51041902,96115.0,96114.0,0.05972698]
[1763185112044,0.51041902,96115.0,96114.0,0.0971138]
[1763185112441,0.51041902,96115.0,96114.0,0.05972698]
[1763185120954,0.51041902,96115.0,96114.0,0.00010698]
[1763185121350,0.51041902,96115.0,96114.0,0.02941698]
[1763185121752,0.51041902,96115.0,96114.0,0.05688698]
[1763185135359,0.51041902,96115.0,96114.0,0.07287698]
[1763185139661,0.51041902,96115.0,96114.0,0.00010698]
[1763185139868,0.51041902,96115.0,96110.0,0.05633654]
[1763185140168,0.01311,96111.0,96110.0,0.00015603]
[1763185140364,0.06219246,96111.0,96110.0,0.00015603]
[1763185140565,0.00874,96108.0,96107.0,0.03749284]
[1763185140868,0.00874,96108.0,96097.0,0.02626]
[1763185140869,0.11023979,96108.0,96097.0,0.02626]
[1763185141068,0.3608,96098.0,96097.0,0.02626]
[1763185141468,0.474869,96098.0,96097.0,0.02626]
[1763185141867,0.474869,96098.0,96097.0,0.05136]
[1763185157585,0.114069,96098.0,96097.0,0.05136]
[1763185157979,0.11932404,96099.0,96098.0,0.05098]
[1763185158185,0.00219803,96100.0,96099.0,0.05098]
[1763185158685,0.11244495,96100.0,96099.0,0.05098]
[1763185166592,0.11244495,96100.0,96096.0,0.03989]
[1763185166792,0.11244495,96100.0,96096.0,0.01438]
[1763185167691,0.11244495,96100.0,96096.0,0.03989]
[1763185169890,0.08743721,96100.0,96096.0,0.03989]
[1763185170286,0.08743721,96100.0,96096.0,0.0641]
[1763185170692,0.08743721,96100.0,96099.0,0.03748727]
[1763185170892,0.08816988,96100.0,96099.0,0.03748727]
[1763185171291,0.08816988,96100.0,96099.0,0.06112727]
[1763185173098,0.44896988,96100.0,96099.0,0.02364]
[1763185177305,0.44896988,96100.0,96099.0,0.0376]
[1763185178105,0.44896988,96100.0,96099.0,0.06181]
[1763185180203,0.49893492,96100.0,96099.0,0.06181]
[1763185187213,0.44896988,96100.0,96099.0,0.06181]
[1763185190615,0.44823721,96100.0,96099.0,0.06181]
[1763185190816,0.44896988,96100.0,96099.0,0.06181]
[1763185193620,0.80976988,96100.0,96099.0,0.06181]
[1763185200623,0.44896988,96100.0,96099.0,0.06181]
[1763185203022,0.44896988,96100.0,96099.0,0.01396]
[1763185203023,0.49861268,96100.0,96099.0,0.01396]
[1763185203426,0.49861268,96100.0,96099.0,0.03519]
[1763185203625,0.49861268,96100.0,96099.0,0.05734]
[1763185208127,0.49861268,96100.0,96096.0,0.01438]
[1763185208322,0.00034,96089.0,96086.0,0.00026018]
[1763185208524,0.36124698,96089.0,96086.0,0.00026018]
[1763185208722,0.47452363,96089.0,96086.0,0.00026018]
[1763185209029,0.00034,96087.0,96086.0,0.00026018]
[1763185209528,0.11324656,96087.0,96086.0,0.00026018]
[1763185214836,0.11324656,96087.0,96086.0,0.02149018]
[1763185215033,0.11324656,96087.0,96086.0,0.04285018]
[1763185218034,0.11307656,96087.0,96086.0,0.04285018]
[1763185218237,0.11290656,96087.0,96086.0,0.04285018]
[1763185218638,0.11538004,96088.0,96086.0,0.00026018]
[1763185218839,0.11538004,96088.0,96087.0,0.04342]
[1763185219036,0.36107698,96089.0,96088.0,0.04342]
[1763185219426,0.47053289,96089.0,96088.0,0.04342]
[1763185219832,0.47036289,96089.0,96088.0,0.04342]
[1763185220034,0.43536289,96089.0,96088.0,0.04342]
[1763185220938,0.48043289,96089.0,96088.0,0.04342]
[1763185221133,0.43636289,96089.0,96088.0,0.04342]
[1763185224739,0.48143289,96089.0,96088.0,0.04342]
[1763185226843,0.15563289,96089.0,96088.0,0.04342]
[1763185228149,0.15563289,96089.0,96088.0,0.04384]
[1763185229746,0.04374,96087.0,96086.0,0.00026018]
[1763185229944,0.40454,96087.0,96086.0,0.00026018]
[1763185230146,0.52367442,96087.0,96086.0,0.00026018]
[1763185231649,0.04374,96078.0,96066.0,0.05618051]
[1763185232052,0.16337417,96078.0,96065.0,0.01316]
[1763185232439,0.16337417,96078.0,96077.0,0.02200603]
[1763185232644,0.16337417,96078.0,96077.0,0.04378603]
[1763185233252,0.16337417,96078.0,96077.0,0.00015603]
[1763185234551,0.17483417,96078.0,96077.0,0.00015603]
[1763185237654,0.16337417,96078.0,96077.0,0.02200603]
[1763185239449,0.16337417,96078.0,96077.0,0.00015603]
[1763185239450,0.21254241,96078.0,96077.0,0.00015603]
[1763185239650,0.04374,96063.0,96061.0,0.03741136]
[1763185239852,0.04374,96056.0,96055.0,0.00468479]
[1763185240256,0.15719231,96056.0,96055.0,0.02653479]
[1763185240458,0.15719231,96056.0,96055.0,0.00468479]
[1763185241258,0.15619231,96056.0,96055.0,0.00468479]
[1763185241846,0.15519231,96056.0,96055.0,0.00468479]
[1763185249655,0.15519231,96056.0,96055.0,0.04831479]
[1763185249860,0.15519231,96056.0,96055.0,0.06147479]
[1763185251656,0.15519231,96056.0,96055.0,0.04831479]
[1763185251861,0.15519231,96056.0,96055.0,0.02653479]
[1763185253454,0.15519231,96056.0,96055.0,0.04831479]
[1763185255261,0.15519231,96056.0,96055.0,0.06147479]
[1763185264361,0.15519231,96056.0,96055.0,0.04831479]
[1763185267179,0.17783851,96056.0,96055.0,0.04831479]
[1763185279879,0.00073267,96060.0,96059.0,0.0437]
[1763185280181,0.36090013,96062.0,96061.0,0.0437]
[1763185280474,0.00015612,96065.0,96064.0,0.0437]
[1763185280670,0.2109427,96074.0,96073.0,0.0437]
[1763185280870,0.04375,96074.0,96073.0,0.0437]
[1763185281076,0.13277558,96074.0,96073.0,0.0437]
[1763185281780,0.13377558,96074.0,96073.0,0.0437]
[1763185281979,0.15517558,96074.0,96073.0,0.0437]
[1763185283295,0.15617558,96074.0,96073.0,0.0437]
[1763185292576,0.17873218,96074.0,96073.0,0.0437]
[1763185292780,0.17773218,96074.0,96073.0,0.0437]
[1763185293583,0.17673218,96074.0,96073.0,0.0437]
[1763185298986,0.11042558,96074.0,96073.0,0.0437]
[1763185299492,0.15265557,96082.0,96080.0,0.01382]
[1763185299689,0.15265557,96082.0,96081.0,0.04388]
[1763185299890,0.04429,96082.0,96081.0,0.04388]
[1763185300097,0.15265557,96082.0,96081.0,0.04388]
[1763185304390,0.10836557,96082.0,96081.0,0.04388]
[1763185304594,0.00015612,96083.0,96082.0,0.04388]
[1763185306595,0.15855346,96083.0,96082.0,0.04388]
[1763185309402,0.11426346,96083.0,96082.0,0.04388]
[1763185309601,0.13623346,96083.0,96082.0,0.04388]
[1763185309997,0.11426346,96083.0,96082.0,0.04388]
[1763185311595,0.13623346,96083.0,96082.0,0.04388]
[1763185312296,0.11426346,96083.0,96082.0,0.04388]
[1763185312498,0.00015612,96083.0,96082.0,0.04388]
[1763185312895,0.1671927,96092.0,96082.0,0.04388]
[1763185313096,0.1671927,96092.0,96091.0,0.04388]
[1763185313097,0.08359635,96092.0,96091.0,0.04388]
[1763185313402,0.40509,96095.0,96094.0,0.04388]
[1763185313801,0.51499039,96095.0,96094.0,0.04388]
[1763185313996,0.3608,96095.0,96094.0,0.04388]
[1763185314306,0.40509,96095.0,96094.0,0.04388]
[1763185318699,0.043,96095.0,96094.0,0.04388]
[1763185322006,0.043,96095.0,96092.0,0.01382]
[1763185322007,0.17916882,96104.0,96096.0,0.04457]
[1763185322210,0.04258,96097.0,96096.0,0.04457]
[1763185322508,0.16111587,96097.0,96096.0,0.04457]
[1763185325605,0.16111587,96097.0,96096.0,0.05731]
[1763185327412,0.12633247,96104.0,96103.0,0.04457]
[1763185327607,0.04273612,96104.0,96103.0,0.04457]
[1763185327808,0.16051687,96104.0,96103.0,0.04457]
[1763185328711,0.16151687,96104.0,96103.0,0.04457]
[1763185329516,0.16251687,96104.0,96103.0,0.04457]
[1763185330910,0.16151687,96104.0,96103.0,0.04457]
[1763185331213,0.16051687,96104.0,96103.0,0.04457]
[1763185331710,0.04273612,96104.0,96103.0,0.04457]
[1763185331916,0.04257,96113.0,96112.0,0.04511]
[1763185332118,0.06506078,96113.0,96112.0,0.05836]
[1763185332319,0.1821123,96113.0,96112.0,0.05836]
[1763185332710,0.15962152,96113.0,96112.0,0.05836]
[1763185333208,0.04272603,96122.0,96121.0,0.04511]
[1763185333518,0.1851435,96122.0,96121.0,0.04511]
[1763185333709,0.04272603,96122.0,96121.0,0.04511]
[1763185333911,0.00015603,96122.0,96121.0,0.04511]
[1763185334111,0.04272603,96122.0,96121.0,0.04511]
[1763185334312,0.02139603,96122.0,96121.0,0.04511]
[1763185334519,0.04272603,96122.0,96121.0,0.04511]
[1763185334822,0.02239603,96122.0,96121.0,0.04511]
[1763185335612,0.02339603,96122.0,96121.0,0.04511]
[1763185336414,0.04472603,96122.0,96121.0,0.04511]
[1763185336615,0.00215603,96122.0,96121.0,0.04511]
[1763185336920,0.00026008,96126.0,96125.0,0.05836]
[1763185337515,0.15383798,96140.0,96139.0,0.04511]
[1763185337714,0.06502753,96140.0,96139.0,0.04511]
[1763185337922,0.18076147,96140.0,96139.0,0.04511]
[1763185338418,0.04257,96132.0,96131.0,0.40591]
[1763185338721,0.15211598,96132.0,96131.0,0.40591]
[1763185339821,0.15311598,96132.0,96131.0,0.40591]
[1763185340219,0.15411598,96132.0,96131.0,0.40591]
[1763185348326,0.15411598,96132.0,96102.0,0.07482045]
[1763185348327,0.04375,96113.0,96112.0,0.05804612]
[1763185348829,0.04375,96113.0,96112.0,0.04479612]
[1763185351830,0.40455,96125.0,96124.0,0.04464]
[1763185352333,0.16195846,96125.0,96124.0,0.04464]
[1763185352927,0.04475,96125.0,96124.0,0.04464]
[1763185354034,0.04575,96125.0,96124.0,0.04464]
[1763185360028,0.06823665,96125.0,96124.0,0.04464]
[1763185365441,0.04575,96125.0,96124.0,0.04464]
[1763185370549,0.04575,96125.0,96124.0,0.05803]
[1763185371349,0.04575,96125.0,96124.0,0.11430471]
[1763185372251,0.04575,96125.0,96124.0,0.05803]
[1763185372645,0.02424,96125.0,96124.0,0.05803]
[1763185372849,0.04575,96125.0,96124.0,0.05803]
[1763185379454,0.002,96125.0,96124.0,0.05803]
[1763185379660,0.45662349,96148.0,96147.0,0.04642]
[1763185379858,0.44181886,96148.0,96147.0,0.04642]
[1763185380057,0.54666525,96148.0,96147.0,0.04642]
[1763185381158,0.18886525,96148.0,96147.0,0.04642]
[1763185382760,0.18686525,96148.0,96147.0,0.04642]
[1763185383058,0.18586525,96148.0,96147.0,0.04642]
[1763185383562,0.11821639,96148.0,96147.0,0.04642]
[1763185383755,0.40593,96156.0,96155.0,0.0599]
[1763185383955,0.42843001,96156.0,96155.0,0.0599]
[1763185384256,0.04513,96156.0,96155.0,0.0599]
[1763185384458,0.02394267,96160.0,96159.0,0.04642]
[1763185384653,0.04586267,96160.0,96159.0,0.04642]
[1763185385758,0.04686267,96160.0,96159.0,0.04642]
[1763185386763,0.04613,96160.0,96159.0,0.04642]
[1763185387356,0.001,96160.0,96159.0,0.04642]
[1763185392055,0.00025997,96166.0,96160.0,0.00219803]
[1763185392264,0.38187,96177.0,96176.0,0.04322]
[1763185392656,0.51999638,96177.0,96176.0,0.04322]
[1763185393364,0.15919638,96177.0,96176.0,0.04322]
[1763185394160,0.16019638,96177.0,96176.0,0.04322]
[1763185397869,0.02207,96177.0,96176.0,0.04322]
[1763185398459,0.04431,96177.0,96176.0,0.04322]
[1763185421179,0.06685941,96177.0,96176.0,0.04322]
[1763185422092,0.04431,96177.0,96176.0,0.04322]
[1763185422288,0.06687608,96177.0,96176.0,0.04322]
[1763185423180,0.06687608,96177.0,96176.0,0.09941582]
[1763185423680,0.06687608,96177.0,96176.0,0.04322]
[1763185428473,0.06687608,96177.0,96176.0,0.05666]
[1763185429873,0.06687608,96177.0,96176.0,0.04322]
[1763185433588,0.06687608,96177.0,96176.0,0.09941209]
[1763185434277,0.06687608,96177.0,96176.0,0.04322]
[1763185440794,0.04431,96177.0,96176.0,0.04322]
[1763185450616,0.001,96177.0,96176.0,0.04322]
[1763185451391,0.09381136,96185.0,96184.0,0.04477]
[1763185451598,0.04936136,96185.0,96184.0,0.04477]
[1763185452495,0.03118935,96185.0,96184.0,0.04477]
[1763185453399,0.02807118,96185.0,96184.0,0.1488051]
[1763185453800,0.02474118,96185.0,96184.0,0.04477]
[1763185454700,0.04548,96201.0,96200.0,0.05321]
[1763185454999,0.35423986,96209.0,96208.0,0.05891]
[1763185455199,0.37672597,96209.0,96208.0,0.05891]
[1763185455396,0.49665658,96209.0,96208.0,0.05891]
[1763185458911,0.14239061,96209.0,96208.0,0.05891]
[1763185459209,0.01123,96209.0,96208.0,0.05891]
[1763185459909,0.02246,96209.0,96208.0,0.05891]
[1763185465613,0.11107922,96220.0,96219.0,0.04577]
[1763185465614,0.13353922,96220.0,96219.0,0.04577]
[1763185465799,0.02319267,96220.0,96219.0,0.04577]
[1763185466005,0.13560225,96220.0,96219.0,0.04577]
[1763185469014,0.02246,96217.0,96216.0,0.05834]
[1763185473313,0.02319267,96220.0,96219.0,0.0452]
[1763185473514,0.02246,96220.0,96219.0,0.0452]
[1763185473708,0.13839126,96220.0,96219.0,0.0452]
[1763185474916,0.13912393,96220.0,96219.0,0.0452]
[1763185475617,0.13912393,96220.0,96219.0,0.0224]
[1763185477411,0.13912393,96220.0,96219.0,0.0452]
[1763185478414,0.16183412,96220.0,96219.0,0.0452]
[1763185480516,0.15060412,96220.0,96215.0,0.3608]
[1763185480817,0.02246,96211.0,96210.0,0.00219803]
[1763185481215,0.16369265,96211.0,96210.0,0.00219803]
[1763185481418,0.16369265,96211.0,96210.0,0.02459803]
[1763185483723,0.16369265,96211.0,96210.0,0.04739803]
[1763185486626,0.03394019,96211.0,96210.0,0.04739803]
[1763185486927,0.04522926,96211.0,96210.0,0.04739803]
[1763185488224,0.15369871,96211.0,96210.0,0.04739803]
[1763185492115,0.15369871,96211.0,96210.0,0.10348669]
[1763185492320,0.15369871,96211.0,96210.0,0.04739803]
[1763185493425,0.13092945,96211.0,96210.0,0.04739803]
[1763185493926,0.1537076,96211.0,96210.0,0.04739803]
[1763185494524,0.13092945,96211.0,96210.0,0.04739803]
[1763185494924,0.15370778,96211.0,96210.0,0.04739803]
[1763185495130,0.13092945,96211.0,96210.0,0.04739803]
[1763185496020,0.15370791,96211.0,96210.0,0.04739803]
[1763185496219,0.13092945,96211.0,96210.0,0.04739803]
[1763185496624,0.10846945,96211.0,96210.0,0.04739803]
[1763185496830,0.13353922,96220.0,96219.0,0.0452]
[1763185497019,0.04523729,96220.0,96219.0,0.0452]
[1763185497215,0.1608491,96220.0,96219.0,0.0452]
[1763185500526,0.3608,96235.0,96219.0,0.0452]
[1763185500527,0.3608,96235.0,96219.0,0.07891716]
[1763185500825,0.3608,96235.0,96234.0,0.04491]
[1763185500826,0.38326,96235.0,96234.0,0.04491]
[1763185501127,0.14104174,96235.0,96234.0,0.04491]
[1763185501829,0.02246,96231.0,96230.0,0.04710803]
[1763185502324,0.14302661,96231.0,96230.0,0.04710803]
[1763185506937,0.14302661,96231.0,96230.0,0.00219803]
[1763185507330,0.14302661,96231.0,96230.0,0.02396803]
[1763185507631,0.14302661,96231.0,96230.0,0.04710803]
[1763185507832,0.14302661,96231.0,96230.0,0.02396803]
[1763185508428,0.14302661,96231.0,96230.0,0.00219803]
[1763185512236,0.14302661,96231.0,96230.0,0.02396803]
[1763185512539,0.14302661,96231.0,96230.0,0.00219803]
[1763185515141,0.14302661,96231.0,96217.0,0.00015595]
[1763185515142,0.02246,96218.0,96217.0,0.00015595]
[1763185515534,0.14252226,96218.0,96217.0,0.00015595]
[1763185515734,0.02246,96205.0,96204.0,0.05924]
[1763185519042,0.02246,96205.0,96201.0,0.3608]
[1763185519043,0.02246,96202.0,96201.0,0.3608]
[1763185519346,0.02246,96196.0,96195.0,0.00015595]
[1763185519740,0.14079213,96196.0,96195.0,0.00015595]
[1763185520036,0.14079213,96196.0,96195.0,0.04609595]
[1763185520237,0.14079213,96196.0,96195.0,0.05939595]
[1763185520443,0.12956213,96196.0,96195.0,0.05939595]
[1763185520643,0.14079213,96196.0,96195.0,0.05939595]
[1763185522650,0.14079213,96196.0,96195.0,0.00015595]
[1763185529143,0.14079213,96196.0,96195.0,0.05862595]
[1763185530347,0.14079213,96196.0,96195.0,0.00015595]
[1763185537746,0.14079213,96196.0,96195.0,0.04523595]
[1763185538154,0.14079213,96196.0,96195.0,0.05862595]
[1763185543156,0.1632564,96196.0,96195.0,0.05862595]
[1763185543355,0.12956213,96196.0,96195.0,0.41942595]
[1763185543952,0.14079213,96196.0,96195.0,0.41942595]
[1763185547660,0.14079213,96196.0,96195.0,0.05862595]
[1763185556157,0.14079213,96196.0,96195.0,0.41942595]
[1763185558165,0.11833213,96196.0,96195.0,0.41942595]
[1763185558367,0.00219803,96200.0,96199.0,0.04448]
[1763185558761,0.15064236,96200.0,96199.0,0.04448]
[1763185559055,0.16187236,96200.0,96199.0,0.04448]
[1763185561572,0.15064236,96200.0,96199.0,0.04448]
[1763185562068,0.13941236,96200.0,96199.0,0.04448]
[1763185562367,0.3608,96213.0,96195.0,0.37434595]
[1763185562368,0.3608,96213.0,96205.0,0.01399]
[1763185562572,0.00015539,96214.0,96213.0,0.04448]
[1763185566786,0.00015539,96214.0,96213.0,0.10054958]
[1763185567577,0.00015539,96214.0,96213.0,0.04448]
[1763185571785,0.08328308,96223.0,96222.0,0.04488]
[1763185571786,0.12274847,96223.0,96222.0,0.04488]
[1763185571997,0.12274847,96223.0,96222.0,0.40568]
[1763185571998,0.04444,96223.0,96222.0,0.40568]
[1763185572290,0.06088939,96223.0,96222.0,0.40568]
[1763185572696,0.06831939,96223.0,96222.0,0.40568]
[1763185573282,0.08970939,96223.0,96222.0,0.40568]
[1763185576290,0.06831939,96223.0,96222.0,0.40568]
[1763185577083,0.08970939,96223.0,96222.0,0.40568]
[1763185579097,0.06831939,96223.0,96222.0,0.40568]
[1763185579293,0.04681939,96223.0,96222.0,0.40568]
[1763185579491,0.06831939,96223.0,96222.0,0.40568]
[1763185580399,0.04681939,96223.0,96222.0,0.40568]
[1763185581096,0.04789,96236.0,96235.0,0.05679]
[1763185581393,0.005,96236.0,96235.0,0.05679]
[1763185582088,0.005,96236.0,96235.0,0.09405287]
[1763185582296,0.005,96236.0,96235.0,0.05679]
[1763185584102,0.005,96236.0,96235.0,0.0940425]
[1763185585198,0.3608,96252.0,96245.0,0.05753]
[1763185585404,0.11103237,96255.0,96245.0,0.05753]
[1763185585903,0.3608,96261.0,96245.0,0.05753]
[1763185586104,0.02175975,96246.0,96245.0,0.05753]
[1763185586305,0.04314975,96246.0,96245.0,0.05753]
[1763185586693,0.40369,96261.0,96260.0,0.05552]
[1763185587091,0.52408094,96261.0,96260.0,0.05552]
[1763185587907,0.16328094,96261.0,96260.0,0.05552]
[1763185590095,0.40521,96272.0,96271.0,0.04383]
[1763185590295,0.04441,96272.0,96271.0,0.04383]
[1763185590506,0.16370796,96272.0,96271.0,0.04383]
[1763185608111,0.00219803,96270.0,96260.0,0.37239]
[1763185608317,0.04441,96253.0,96252.0,0.40463]
[1763185610214,0.15544237,96262.0,96261.0,0.04383]
[1763185610517,0.16421038,96262.0,96261.0,0.04383]
[1763185615117,0.16421038,96262.0,96261.0,0.44187889]
[1763185615919,0.16421038,96262.0,96261.0,0.40463]
[1763185616417,0.16421038,96262.0,96261.0,0.08120725]
[1763185616626,0.16421038,96262.0,96261.0,0.04383]
[1763185617917,0.11980038,96262.0,96261.0,0.04383]
[1763185618120,0.04977,96276.0,96275.0,0.05708]
[1763185618423,0.16019095,96272.0,96270.0,0.03737351]
[1763185618623,0.05646,96270.0,96269.0,0.03737351]
[1763185618925,0.17407898,96270.0,96269.0,0.03737351]
[1763185619119,0.04477,96262.0,96261.0,0.40498]
[1763185619317,0.16238898,96270.0,96269.0,0.04418]
[1763185619510,0.02397803,96270.0,96269.0,0.04418]
[1763185619724,0.04696803,96270.0,96269.0,0.04418]
[1763185620121,0.04696803,96270.0,96269.0,0.40498]
[1763185624424,0.005,96276.0,96275.0,0.05708]
[1763185625030,0.02678,96276.0,96275.0,0.05708]
[1763185625229,0.04977,96276.0,96275.0,0.05708]
[1763185626122,0.02678,96276.0,96275.0,0.05708]
[1763185626316,0.005,96276.0,96275.0,0.05708]
[1763185626719,0.3608,96291.0,96285.0,0.05708]
[1763185626920,0.40557,96303.0,96302.0,0.04418]
[1763185627327,0.15715825,96303.0,96302.0,0.04418]
[1763185627827,0.40557,96314.0,96313.0,0.04418]
[1763185628325,0.04977,96316.0,96315.0,0.04418]
[1763185628526,0.04977,96316.0,96312.0,0.02108]
[1763185628527,0.04477,96313.0,96312.0,0.02108]
[1763185628731,0.04477,96313.0,96312.0,0.04418]
[1763185629028,0.15660879,96313.0,96312.0,0.05708]
[1763185629432,0.15660879,96313.0,96312.0,0.04418]
[1763185629730,0.15660879,96313.0,96312.0,0.05708]
[1763185630130,0.15660879,96313.0,96312.0,0.04418]
[1763185633126,0.15660879,96313.0,96312.0,0.05795]
[1763185636333,0.15660879,96313.0,96312.0,0.04418]
[1763185640332,0.15660879,96313.0,96312.0,0.05795]
[1763185644029,0.04477,96313.0,96312.0,0.05795]
[1763185644232,0.02643,96316.0,96315.0,0.05752]
[1763185644430,0.005,96316.0,96315.0,0.05752]
[1763185644731,0.04927,96316.0,96315.0,0.05752]
[1763185645529,0.04927,96316.0,96315.0,0.04375]
[1763185645728,0.04927,96316.0,96311.0,0.02187]
[1763185645729,0.05711,96312.0,96311.0,0.02187]
[1763185646138,0.17519652,96312.0,96311.0,0.04375]
[1763185647825,0.17519652,96312.0,96311.0,0.02187]
[1763185648030,0.17519652,96312.0,96311.0,0.04333]
[1763185649130,0.16235652,96312.0,96311.0,0.04333]